bitfinex-derivatives/quotes_BNBF0:USTF0_20250116
["timestamp","ask_amount","ask_price","bid_price","bid_amount"]
[1736990239148,1.89286042,710.9,710.68,8.101]
[1736990239349,1.89286042,710.89,710.68,8.101]
[1736990239550,0.28113974,711.39,710.68,8.101]
[1736990239551,1.89286042,710.88,710.68,8.101]
[1736990239848,1.89286042,710.87,710.68,8.101]
[1736990240049,1.89286042,710.86,710.68,8.101]
[1736990240249,1.13596046,710.85,710.68,8.101]
[1736990240549,1.13596046,710.84,710.68,8.101]
[1736990240749,1.13596046,710.83,710.68,8.101]
[1736990240949,1.05257322,711.09,710.68,8.101]
[1736990241144,3.11185141,711.08,710.68,8.101]
[1736990241350,3.11185141,711.07,710.68,8.101]
[1736990241550,3.11185141,711.06,710.68,8.101]
[1736990241749,3.11185141,711.05,710.68,8.101]
[1736990241946,3.11185141,711.04,710.68,8.101]
[1736990242147,3.11185141,711.03,710.68,8.101]
[1736990242352,3.11185141,711.02,710.68,8.101]
[1736990242652,3.11185141,711.01,710.68,8.101]
[1736990242854,3.11185141,711.0,710.68,8.101]
[1736990243048,3.11185141,710.99,710.68,8.101]
[1736990243252,3.11185141,710.98,710.68,8.101]
[1736990243452,3.11185141,710.97,710.68,8.101]
[1736990243653,3.11185141,710.96,710.68,8.101]
[1736990243852,3.11185141,710.95,710.68,8.101]
[1736990244152,3.11185141,710.94,710.68,8.101]
[1736990244354,3.11185141,710.93,710.68,8.101]
[1736990244554,3.11185141,710.92,710.68,8.101]
[1736990244851,3.11185141,710.91,710.68,8.101]
[1736990245055,3.11185141,710.9,710.68,8.101]
[1736990245254,3.11185141,710.89,710.68,8.101]
[1736990245452,3.11185141,710.88,710.68,8.101]
[1736990245653,1.897695,710.87,710.68,8.101]
[1736990245853,1.897695,710.86,710.68,8.101]
[1736990246153,1.897695,710.85,710.68,8.101]
[1736990246453,1.897695,710.84,710.68,8.101]
[1736990246654,1.897695,710.83,710.68,8.101]
[1736990246853,1.13884724,710.82,710.68,8.101]
[1736990247054,1.13884724,710.81,710.68,8.101]
[1736990247252,1.05257322,711.21,710.68,6.577]
[1736990247455,3.37114019,711.2,710.68,6.577]
[1736990247755,0.28113974,711.39,710.68,6.577]
[1736990247756,3.37114019,711.19,710.68,6.577]
[1736990247955,3.11261721,711.18,710.68,6.577]
[1736990248151,3.11261721,711.17,710.68,6.577]
[1736990248351,3.37112432,711.16,710.68,6.577]
[1736990248558,3.371126,711.15,710.68,7.94]
[1736990248857,3.11261721,711.14,710.68,7.94]
[1736990249155,3.11261721,711.13,710.68,7.94]
[1736990249456,3.11261721,711.12,710.68,7.94]
[1736990249649,3.11261721,711.11,710.68,7.94]
[1736990249854,3.11261721,711.1,710.68,7.94]
[1736990250155,3.11261721,711.09,710.68,7.94]
[1736990250358,3.11261721,711.08,710.68,7.94]
[1736990250558,3.11261721,711.07,710.68,7.94]
[1736990250755,0.25850879,711.15,710.68,7.94]
[1736990250756,3.11261721,711.06,710.68,7.94]
[1736990250949,1.89816304,711.05,710.68,7.94]
[1736990251148,1.89816304,711.04,710.68,7.94]
[1736990251349,1.89816304,711.03,710.68,7.94]
[1736990251553,1.89816304,711.02,710.68,7.94]
[1736990251754,1.89816304,711.01,710.68,7.94]
[1736990251950,1.13912919,711.0,710.68,7.94]
[1736990252155,0.25850879,711.15,710.68,7.94]
[1736990252354,1.89916394,711.14,710.68,7.94]
[1736990252650,0.25850879,711.15,710.68,7.94]
[1736990252651,3.11423991,711.13,710.68,7.94]
[1736990252956,3.11423991,711.12,710.68,7.94]
[1736990253152,3.11423991,711.11,710.68,7.94]
[1736990253357,3.11423991,711.1,710.68,7.94]
[1736990253557,1.13974146,711.09,710.68,7.94]
[1736990253750,1.89923221,711.08,710.68,7.94]
[1736990253955,1.89923221,711.07,710.68,7.94]
[1736990254156,1.89923221,711.06,710.68,7.94]
[1736990254357,1.89923221,711.05,710.68,7.94]
[1736990254557,1.89923221,711.04,710.68,7.94]
[1736990254862,1.13974146,711.03,710.68,7.94]
[1736990255051,0.25850879,711.15,710.68,7.94]
[1736990255257,1.89935462,711.14,710.68,7.94]
[1736990255456,3.11454988,711.13,710.68,7.94]
[1736990255653,3.11454988,711.12,710.68,7.94]
[1736990255852,3.11454988,711.11,710.68,7.94]
[1736990256058,0.25850879,711.15,710.68,7.94]
[1736990256059,3.11454988,711.1,710.68,7.94]
[1736990256360,3.11454988,711.09,710.68,7.94]
[1736990256563,3.11454988,711.08,710.68,7.94]
[1736990256860,1.89935462,711.07,710.68,7.94]
[1736990257060,1.89935462,711.06,710.68,7.94]
[1736990257261,0.28113974,711.39,710.68,7.94]
[1736990257262,1.89935462,711.05,710.68,7.94]
[1736990257459,1.89935462,711.04,710.68,7.94]
[1736990257660,1.89935462,711.03,710.68,7.94]
[1736990257856,1.89935462,711.02,710.68,7.94]
[1736990258054,1.89935462,711.01,710.68,7.94]
[1736990258259,1.89938252,711.0,710.68,7.94]
[1736990258460,1.89938252,710.99,710.68,7.94]
[1736990258661,1.89938042,710.98,710.68,7.94]
[1736990258960,1.89938042,710.97,710.68,7.94]
[1736990259161,1.89938042,710.96,710.68,7.94]
[1736990259357,1.13985758,710.95,710.68,7.94]
[1736990259660,1.13985758,710.94,710.68,7.94]
[1736990259862,1.05257322,711.29,710.68,7.94]
[1736990260060,1.05257322,711.27,710.68,7.94]
[1736990260259,3.37318182,711.26,710.68,7.94]
[1736990260456,3.37318182,711.25,710.68,7.94]
[1736990260659,3.37318182,711.24,710.68,7.94]
[1736990260860,3.37318182,711.23,710.68,7.94]
[1736990261060,3.37318182,711.22,710.68,7.94]
[1736990261367,3.37318182,711.21,710.68,7.94]
[1736990261563,3.37321089,711.2,710.68,7.94]
[1736990261861,3.11470978,711.19,710.68,7.94]
[1736990262062,3.11470978,711.18,710.68,7.94]
[1736990262260,0.28113974,711.39,710.68,7.94]
[1736990262261,3.11470978,711.17,710.68,7.94]
[1736990262461,3.11470978,711.16,710.68,7.94]
[1736990262764,3.11470978,711.15,710.68,7.94]
[1736990263063,3.11470978,711.14,710.68,7.94]
[1736990263363,3.11470978,711.13,710.68,7.94]
[1736990263662,3.11470978,711.12,710.68,7.94]
[1736990263861,3.11470978,711.11,710.68,7.94]
[1736990264063,3.11470978,711.1,710.68,7.94]
[1736990264256,3.11470978,711.09,710.68,7.94]
[1736990264457,3.11470978,711.08,710.68,7.94]
[1736990264662,3.11470978,711.07,710.68,7.94]
[1736990264963,3.11470978,711.06,710.68,7.94]
[1736990265163,3.11470978,711.05,710.68,7.94]
[1736990265357,3.11470978,711.04,710.68,7.94]
[1736990265564,3.11470978,711.03,710.68,7.94]
[1736990265760,3.11470978,711.02,710.68,7.94]
[1736990265962,3.11470978,711.01,710.68,7.94]
[1736990266157,0.28113974,711.39,710.68,7.94]
[1736990266158,3.11470978,711.0,710.68,7.94]
[1736990266461,3.11470978,710.99,710.68,7.94]
[1736990266661,3.11470978,710.98,710.68,7.94]
[1736990266857,3.11470978,710.97,710.68,7.94]
[1736990267065,0.28113974,711.39,710.68,7.94]
[1736990267066,3.11470978,710.96,710.68,7.94]
[1736990267265,3.11470978,710.95,710.68,7.94]
[1736990267564,3.11470978,710.94,710.68,7.94]
[1736990267765,3.11470978,710.93,710.68,7.94]
[1736990267965,3.11470978,710.92,710.68,7.94]
[1736990268167,3.11470978,710.91,710.68,7.94]
[1736990268367,3.11470978,710.9,710.68,7.94]
[1736990268564,3.11470978,710.89,710.68,7.94]
[1736990268768,3.11470978,710.88,710.68,7.94]
[1736990269068,3.11470978,710.87,710.68,7.94]
[1736990269265,3.11470978,710.86,710.68,7.94]
[1736990269461,3.11470978,710.85,710.68,7.94]
[1736990269667,3.11470978,710.84,710.68,7.94]
[1736990269869,3.11470978,710.83,710.68,7.94]
[1736990270065,3.11470978,710.82,710.68,7.94]
[1736990270269,3.11470978,710.81,710.68,7.94]
[1736990270469,3.11402355,710.8,710.68,6.577]
[1736990270667,1.89944741,710.79,710.68,6.577]
[1736990270871,1.89944741,710.78,709.5,1.0507612]
[1736990271172,1.89944741,710.77,709.49,1.0507612]
[1736990271467,1.89944741,710.76,709.5,3.06779003]
[1736990271671,1.89944741,710.75,709.5,3.06779003]
[1736990271872,1.89944741,710.74,709.5,6.53879003]
[1736990272073,1.05257322,711.04,709.5,8.71655123]
[1736990272267,1.05257322,711.04,709.51,0.28188468]
[1736990272268,3.37117539,711.03,709.51,0.28188468]
[1736990272467,3.37118234,711.02,709.51,0.28188468]
[1736990272668,3.37118054,711.01,709.51,0.28188468]
[1736990272869,3.11261524,711.0,709.51,0.28188468]
[1736990273068,3.11261524,710.99,709.51,0.28188468]
[1736990273267,3.11261524,710.98,709.51,0.28188468]
[1736990273468,3.11261524,710.97,709.51,0.28188468]
[1736990273671,3.11261524,710.96,709.51,0.28188468]
[1736990273870,3.11261524,710.95,709.51,0.28188468]
[1736990274067,3.11261524,710.94,709.51,0.28188468]
[1736990274267,3.11261524,710.93,709.51,0.28188468]
[1736990274573,3.11261524,710.92,709.51,0.28188468]
[1736990274873,3.11261524,710.91,709.51,0.28188468]
[1736990275072,3.11261524,710.9,709.51,0.28188468]
[1736990275274,3.11261524,710.89,709.51,0.28188468]
[1736990275469,3.11261524,710.88,709.51,2.15088468]
[1736990275671,3.11261524,710.87,709.51,2.15088468]
[1736990275869,1.05257322,711.31,709.51,2.15088468]
[1736990275870,3.11261524,710.86,709.51,2.15088468]
[1736990276072,3.11261524,710.85,709.51,2.15088468]
[1736990276275,3.11261524,710.84,709.51,2.15088468]
[1736990276478,3.11261524,710.83,709.51,2.15088468]
[1736990276775,3.11261524,710.82,709.51,2.15088468]
[1736990276969,1.89815608,710.81,709.51,2.15088468]
[1736990277174,1.89815608,710.8,709.51,2.15088468]
[1736990277473,1.05257322,711.31,709.51,2.15088468]
[1736990277474,1.89815608,710.79,709.51,2.15088468]
[1736990277673,1.89815608,710.78,709.51,2.15088468]
[1736990277872,1.89815608,710.77,709.51,2.15088468]
[1736990278076,0.75903698,710.76,709.51,2.15088468]
[1736990278373,1.05257322,711.09,709.51,2.15088468]
[1736990278573,1.33371296,711.39,709.51,2.15088468]
[1736990278574,3.11059902,711.08,709.51,2.15088468]
[1736990278772,3.11059902,711.07,709.51,2.15088468]
[1736990278973,3.11059902,711.06,709.51,2.15088468]
[1736990279173,3.11059902,711.05,709.51,2.15088468]
[1736990279478,3.11059902,711.04,709.51,2.15088468]
[1736990279773,1.05257322,711.2,709.51,2.15088468]
[1736990279774,3.11059902,711.03,709.51,2.15088468]
[1736990279976,3.11059902,711.02,709.51,2.15088468]
[1736990280177,3.11059902,711.01,709.52,1.0507612]
[1736990280377,3.11059902,711.0,709.53,0.28187673]
[1736990280569,3.11059902,710.99,709.53,0.28187673]
[1736990280774,3.11059902,710.98,709.53,0.28187673]
[1736990281077,3.11059902,710.97,709.53,1.33263793]
[1736990281276,1.89692606,710.96,709.53,1.33263793]
[1736990281571,0.28113974,711.39,709.53,1.33263793]
[1736990281572,1.89692606,710.95,709.53,1.33263793]
[1736990281771,1.89692606,710.94,709.53,1.33263793]
[1736990282077,1.89692606,710.93,709.54,1.0507612]
[1736990282278,1.89692606,710.92,709.54,1.0507612]
[1736990282478,1.89692606,710.91,709.54,1.0507612]
[1736990282675,1.89692606,710.9,709.58,1.0507612]
[1736990282882,1.13838046,710.89,709.59,0.2818529]
[1736990283181,1.89728018,710.88,709.59,0.2818529]
[1736990283381,1.89728018,710.87,709.59,0.2818529]
[1736990283582,1.89728018,710.86,709.59,0.2818529]
[1736990283781,1.89728018,710.85,709.59,0.2818529]
[1736990283983,1.89728018,710.84,709.59,0.2818529]
[1736990284181,1.89728018,710.83,709.59,0.2818529]
[1736990284484,1.89728018,710.82,709.59,0.2818529]
[1736990284782,1.89728018,710.81,709.59,0.2818529]
[1736990284980,1.89728018,710.8,709.59,0.2818529]
[1736990285178,1.89728018,710.79,709.59,0.2818529]
[1736990285482,1.89728018,710.78,709.59,0.2818529]
[1736990285681,1.89728018,710.77,709.59,0.2818529]
[1736990285882,1.13838046,710.76,709.59,0.2818529]
[1736990286082,1.13838046,710.75,709.59,0.2818529]
[1736990286283,1.05257322,711.32,709.59,0.2818529]
[1736990286485,0.28117531,711.3,709.59,0.2818529]
[1736990286688,3.37087106,711.29,709.59,0.2818529]
[1736990286884,0.28118717,711.27,709.59,0.2818529]
[1736990287085,3.37087106,711.26,709.6,2.78532627]
[1736990287284,0.28119903,711.24,709.6,2.78532627]
[1736990287482,3.37087106,711.23,709.6,2.78532627]
[1736990287682,1.05257322,711.08,709.6,2.78532627]
[1736990287988,3.65213732,711.07,709.6,2.78532627]
[1736990288189,3.65214127,711.06,709.6,2.78532627]
[1736990288389,3.65214523,711.05,709.6,2.78532627]
[1736990288587,3.370873,711.04,709.6,2.78532627]
[1736990288783,0.28127417,711.05,709.6,2.78532627]
[1736990288784,3.370873,711.03,709.6,2.78532627]
[1736990289086,3.370873,711.02,709.6,2.78532627]
[1736990289290,3.370873,711.01,709.6,2.78532627]
[1736990289490,3.370873,711.0,709.6,2.78532627]
[1736990289691,3.370873,710.99,709.6,2.78532627]
[1736990289888,3.370873,710.98,709.6,2.78532627]
[1736990290183,3.370873,710.97,709.6,2.78532627]
[1736990290388,3.370873,710.96,709.6,2.78532627]
[1736990290589,3.370873,710.95,709.6,2.78532627]
[1736990290785,2.15653899,710.94,709.61,0.28184495]
[1736990291091,2.15653899,710.93,709.61,0.28184495]
[1736990291291,2.15653899,710.92,709.61,1.40884495]
[1736990291493,2.15653899,710.91,709.61,1.40884495]
[1736990291689,1.89795108,710.9,709.61,2.94084495]
[1736990291890,1.89795108,710.89,709.62,2.78532627]
[1736990292191,1.89795108,710.88,709.63,0.28183701]
[1736990292385,1.89795108,710.87,709.63,0.28183701]
[1736990292588,1.13899233,710.86,709.63,0.28183701]
[1736990292788,1.05257322,711.01,709.64,2.78532627]
[1736990292991,3.3712833,711.0,709.64,2.78532627]
[1736990293192,3.3712833,710.99,709.64,2.78532627]
[1736990293394,3.11271329,710.98,709.64,2.78532627]
[1736990293692,3.37128525,710.97,709.63,0.28183701]
[1736990293894,3.37128525,710.96,709.64,1.546]
[1736990294089,3.11271329,710.95,709.64,1.546]
[1736990294391,3.11271329,710.94,709.64,1.546]
[1736990294591,3.11271329,710.93,709.64,1.546]
[1736990294787,3.11271329,710.92,709.64,1.546]
[1736990295096,3.11271329,710.91,709.64,1.546]
[1736990295393,3.11271329,710.9,709.64,1.546]
[1736990295591,3.11271329,710.89,709.64,1.546]
[1736990295792,0.28127417,711.05,709.64,1.546]
[1736990295793,3.11271329,710.88,709.64,1.546]
[1736990295993,3.11271329,710.87,709.64,1.546]
[1736990296193,3.11310629,710.86,709.64,1.546]
[1736990296387,3.11310629,710.85,709.64,1.546]
[1736990296594,3.11310629,710.84,709.64,1.546]
[1736990296889,3.11310629,710.83,709.64,1.546]
[1736990297089,1.05257322,710.93,709.64,1.546]
[1736990297090,3.11310629,710.82,709.64,1.546]
[1736990297288,3.11310629,710.81,709.64,1.546]
[1736990297493,0.28127417,711.05,709.64,1.546]
[1736990297494,3.11310629,710.8,709.64,1.546]
[1736990297693,3.11310629,710.79,709.64,1.546]
[1736990297891,3.11310629,710.78,709.64,1.546]
[1736990298088,1.89836542,710.77,709.64,1.82783304]
[1736990298296,1.05257322,710.9,709.64,1.82783304]
[1736990298791,3.11315486,710.89,709.64,1.82783304]
[1736990299391,3.11304016,710.88,709.64,1.82783304]
[1736990299593,4.16572808,710.89,709.64,1.82783304]
[1736990299594,3.11304016,710.87,709.64,1.82783304]
[1736990299895,3.11304016,710.86,709.64,1.82783304]
[1736990300095,3.11304016,710.85,709.64,1.82783304]
[1736990300296,3.11304016,710.84,709.64,1.82783304]
[1736990300489,3.11304016,710.83,709.64,1.82783304]
[1736990300693,3.11304016,710.82,709.64,1.82783304]
[1736990300896,3.11304016,710.81,709.64,1.82783304]
[1736990301197,3.11304016,710.8,709.64,1.82783304]
[1736990301396,3.11304016,710.79,709.64,1.82783304]
[1736990301595,3.11304016,710.78,709.64,1.82783304]
[1736990301795,3.11304016,710.77,709.64,1.82783304]
[1736990302099,3.11304016,710.76,709.64,1.82783304]
[1736990302295,3.11304016,710.75,709.64,1.82783304]
[1736990302497,1.89841303,710.74,709.64,1.82783304]
[1736990302797,1.89841303,710.73,709.64,1.82783304]
[1736990302996,1.89841303,710.72,709.64,1.82783304]
[1736990303190,1.89841303,710.71,709.64,1.82783304]
[1736990303395,1.89841303,710.7,709.64,1.82783304]
[1736990303595,1.89841303,710.69,709.64,1.82783304]
[1736990303795,1.89841303,710.68,709.64,1.82783304]
[1736990303993,1.89841303,710.67,709.64,1.82783304]
[1736990304194,1.89841303,710.66,709.64,1.82783304]
[1736990304399,1.89841303,710.65,709.64,1.82783304]
[1736990304594,1.13893079,710.64,709.64,1.82783304]
[1736990304797,3.11315486,710.89,709.64,1.82783304]
[1736990305095,3.11212044,710.88,709.64,1.82783304]
[1736990305298,3.11212044,710.87,709.64,1.82783304]
[1736990305498,3.11212044,710.86,709.64,1.82783304]
[1736990305692,3.11212044,710.85,709.64,1.82783304]
[1736990305893,3.11212044,710.84,709.64,1.82783304]
[1736990306096,3.11212044,710.83,709.64,1.82783304]
[1736990306298,3.11212044,710.82,709.64,5.25383304]
[1736990306500,3.11212044,710.81,709.64,5.25383304]
[1736990306796,3.11212044,710.8,709.64,5.25383304]
[1736990306995,3.11212044,710.79,709.64,5.25383304]
[1736990307195,3.11212044,710.78,709.64,5.25383304]
[1736990307398,3.11212044,710.77,709.64,5.25383304]
[1736990307597,3.11212044,710.76,709.64,5.25383304]
[1736990307800,3.11212044,710.75,709.64,5.25383304]
[1736990308001,3.11212044,710.74,709.64,5.25383304]
[1736990308302,3.11212044,710.73,709.64,5.25383304]
[1736990308501,3.11212044,710.72,709.64,5.25383304]
[1736990308701,3.11315486,710.89,709.64,5.25383304]
[1736990308702,3.11212044,710.71,709.64,5.25383304]
[1736990308903,3.11315486,710.89,709.64,5.25383304]
[1736990309205,3.11139932,710.88,709.64,5.25383304]
[1736990309398,3.11139932,710.87,709.64,5.25383304]
[1736990309596,3.11139932,710.86,709.64,5.25383304]
[1736990309799,3.11139932,710.85,709.64,5.25383304]
[1736990310000,3.11139932,710.84,709.64,5.25383304]
[1736990310196,3.11139932,710.83,709.64,5.25383304]
[1736990310398,3.11139932,710.82,709.64,5.25383304]
[1736990310603,3.11139932,710.81,709.64,5.25383304]
[1736990310805,3.11139932,710.8,709.64,5.25383304]
[1736990311001,3.11131564,710.79,709.64,5.25383304]
[1736990311303,3.11147631,710.78,709.64,5.25383304]
[1736990311503,1.89740643,710.77,709.64,5.25383304]
[1736990311705,1.89740643,710.76,709.64,5.25383304]
[1736990311897,1.89740643,710.75,709.64,5.25383304]
[1736990312101,1.89740643,710.74,709.64,5.25383304]
[1736990312303,3.11157593,710.73,709.64,5.25383304]
[1736990312496,1.89740643,710.72,709.64,5.25383304]
[1736990312701,1.89740643,710.71,709.64,5.25383304]
[1736990313000,3.11315486,710.89,709.64,5.25383304]
[1736990313001,1.89740643,710.7,709.64,5.25383304]
[1736990313202,1.89740643,710.69,709.64,5.25383304]
[1736990313403,1.89740643,710.68,709.64,5.25383304]
[1736990313700,1.05257322,710.79,709.64,5.25383304]
[1736990313906,3.11214364,710.78,709.64,5.25383304]
[1736990314205,3.11214364,710.77,709.64,5.25383304]
[1736990314506,3.11256991,710.76,709.64,5.25383304]
[1736990314708,1.89801844,710.75,709.64,5.25383304]
[1736990314905,1.89801844,710.74,709.64,5.25383304]
[1736990315101,1.89801844,710.73,709.64,5.25383304]
[1736990315299,1.89801844,710.72,709.64,5.25383304]
[1736990315499,1.89801844,710.71,709.64,5.25383304]
[1736990315705,1.89801844,710.7,709.64,5.25383304]
[1736990315903,1.13893387,710.69,709.64,5.25383304]
[1736990316101,1.89816773,710.68,709.64,5.25383304]
[1736990316305,1.89816773,710.67,709.64,5.25383304]
[1736990316607,1.89816773,710.66,709.64,5.25383304]
[1736990316907,1.89816773,710.65,709.64,5.25383304]
[1736990317099,1.89816773,710.64,709.64,5.25383304]
[1736990317304,1.89816773,710.63,709.64,5.25383304]
[1736990317503,1.89816773,710.62,709.64,6.38083304]
[1736990317807,3.11315486,710.89,709.64,6.38083304]
[1736990318008,3.11499652,710.88,709.64,6.38083304]
[1736990318210,3.11499652,710.87,709.64,6.38083304]
[1736990318408,3.11499652,710.86,709.64,6.38083304]
[1736990318708,3.11499652,710.85,709.64,6.38083304]
[1736990318909,3.11499652,710.84,709.64,6.38083304]
[1736990319110,3.11499652,710.83,709.64,6.38083304]
[1736990319303,3.11499652,710.82,709.64,6.38083304]
[1736990319506,3.11315486,710.89,709.64,6.38083304]
[1736990319507,3.11499652,710.81,709.65,0.28182907]
[1736990319708,3.11499652,710.8,709.65,0.28182907]
[1736990319908,3.11499652,710.79,709.65,0.28182907]
[1736990320109,1.89960369,710.78,709.65,0.28182907]
[1736990320308,1.89960369,710.77,709.65,0.28182907]
[1736990320508,1.89960369,710.76,709.65,0.28182907]
[1736990320809,1.89960369,710.75,709.65,0.28182907]
[1736990321011,1.89960369,710.74,709.66,1.0507612]
[1736990321311,1.89960369,710.73,709.67,0.28182112]
[1736990321613,1.89960369,710.72,709.67,0.28182112]
[1736990321810,1.89960369,710.71,709.67,0.28182112]
[1736990322112,1.89960369,710.7,709.67,0.28182112]
[1736990322310,1.89960369,710.69,709.67,0.28182112]
[1736990322611,1.89960369,710.68,709.67,0.28182112]
[1736990322807,1.89960369,710.67,709.67,0.28182112]
[1736990323007,1.89960369,710.66,709.67,0.28182112]
[1736990323311,1.90070203,710.65,709.67,0.28182112]
[1736990323504,1.14164165,710.64,709.67,0.28182112]
[1736990323703,3.11315486,710.89,709.67,0.28182112]
[1736990323908,3.1194915,710.88,709.67,0.28182112]
[1736990324105,3.11315486,710.89,709.67,0.28182112]
[1736990324106,3.1194915,710.87,709.67,0.28182112]
[1736990324305,3.1194915,710.86,709.67,0.28182112]
[1736990324608,3.1194915,710.85,709.67,0.28182112]
[1736990324806,3.1194915,710.84,709.67,0.28182112]
[1736990325013,3.1194915,710.83,709.67,0.28182112]
[1736990325209,3.1194915,710.82,709.67,0.28182112]
[1736990325412,3.1194915,710.81,709.67,0.28182112]
[1736990325607,3.1194915,710.8,709.67,0.28182112]
[1736990325808,3.1194915,710.79,709.67,0.28182112]
[1736990326112,3.11315486,710.89,709.67,0.28182112]
[1736990326113,3.1194915,710.78,709.67,0.28182112]
[1736990326312,3.1194915,710.77,709.67,0.28182112]
[1736990326508,3.1194915,710.76,709.67,0.28182112]
[1736990326713,3.1194915,710.75,709.67,0.28182112]
[1736990326914,3.1194915,710.74,709.67,0.28182112]
[1736990327108,3.1194915,710.73,709.67,0.28182112]
[1736990327308,1.90234864,710.72,709.67,0.28182112]
[1736990327510,1.90234864,710.71,709.67,0.28182112]
[1736990327710,1.90234864,710.7,709.67,0.28182112]
[1736990327914,1.90234864,710.69,709.67,0.28182112]
[1736990328116,1.90234864,710.68,709.67,0.28182112]
[1736990328317,1.90234864,710.67,709.67,0.28182112]
[1736990328519,1.90234864,710.66,709.67,3.05082112]
[1736990328716,1.14163436,710.65,709.67,3.05082112]
[1736990329018,1.14163436,710.64,709.67,3.05082112]
[1736990329317,3.11315486,710.89,709.67,3.05082112]
[1736990329618,3.12080261,710.88,709.67,3.05082112]
[1736990329819,3.12080261,710.87,709.67,3.05082112]
[1736990330018,3.11315486,710.89,709.67,3.05082112]
[1736990330019,3.12080261,710.86,709.67,3.05082112]
[1736990330212,3.12080261,710.85,709.67,3.05082112]
[1736990330418,3.12080261,710.84,709.67,3.05082112]
[1736990330612,3.12080261,710.83,709.67,3.05082112]
[1736990330815,3.12080261,710.82,709.67,3.05082112]
[1736990331015,3.11315486,710.89,709.67,3.05082112]
[1736990331016,3.12080261,710.81,709.67,3.05082112]
[1736990331216,3.12080261,710.8,709.67,3.05082112]
[1736990331418,3.12080261,710.79,709.67,3.05082112]
[1736990331619,3.12080261,710.78,709.67,3.05082112]
[1736990331819,3.12080261,710.77,709.67,3.05082112]
[1736990332021,3.12080261,710.76,709.67,3.05082112]
[1736990332214,3.12080261,710.75,709.67,3.05082112]
[1736990332413,3.12080261,710.74,709.67,3.05082112]
[1736990332718,3.12080261,710.73,709.67,3.05082112]
[1736990332916,3.12080261,710.72,709.67,3.05082112]
[1736990333121,3.12080261,710.71,709.67,3.05082112]
[1736990333420,3.12080261,710.7,709.67,3.05082112]
[1736990333622,3.12080261,710.69,709.67,3.05082112]
[1736990333819,3.12080261,710.68,709.67,3.05082112]
[1736990334021,3.12080261,710.67,709.67,3.05082112]
[1736990334221,3.12080261,710.66,709.67,3.05082112]
[1736990334418,3.12080261,710.65,709.67,3.05082112]
[1736990334619,3.12107668,710.64,709.67,3.05082112]
[1736990334816,1.90325327,710.63,709.67,3.05082112]
[1736990335016,1.90325327,710.62,709.67,3.05082112]
[1736990335317,1.90325327,710.61,709.67,3.05082112]
[1736990335518,1.90325327,710.6,709.67,3.05082112]
[1736990335721,3.11315486,710.89,709.67,3.05082112]
[1736990335722,1.90325327,710.59,709.67,3.05082112]
[1736990336018,1.90325327,710.58,709.67,3.05082112]
[1736990336321,1.90325327,710.57,709.67,3.05082112]
[1736990336521,1.90325327,710.56,709.67,3.05082112]
[1736990336722,1.14211364,710.55,709.67,4.17782112]
[1736990336921,1.05257322,710.85,709.67,4.17782112]
[1736990337124,3.12130669,710.84,709.67,4.17782112]
[1736990337324,3.12130669,710.83,709.67,4.17782112]
[1736990337523,4.17387991,710.82,709.67,4.17782112]
[1736990337725,3.12130669,710.81,709.67,4.17782112]
[1736990337920,3.12130669,710.8,709.67,4.17782112]
[1736990338125,3.12130669,710.79,709.67,4.17782112]
[1736990338321,3.12130669,710.78,709.67,4.17782112]
[1736990338525,3.12130669,710.77,709.67,4.17782112]
[1736990338723,3.12130669,710.76,709.67,4.17782112]
[1736990338926,3.12130669,710.75,709.67,4.17782112]
[1736990339228,1.9034507,710.74,709.67,4.17782112]
[1736990339429,1.9034507,710.73,709.67,4.17782112]
[1736990339627,4.16572808,710.89,709.67,4.17782112]
[1736990339628,1.9034507,710.72,709.67,4.17782112]
[1736990339828,1.9034507,710.71,709.67,4.17782112]
[1736990340022,1.9034507,710.7,709.67,4.17782112]
[1736990340222,1.9034507,710.69,709.67,4.17782112]
[1736990340528,1.90337911,710.68,709.67,4.17782112]
[1736990340728,1.14229071,710.67,709.67,4.17782112]
[1736990341028,3.11315486,710.89,709.67,4.17782112]
[1736990341230,3.12105161,710.88,709.67,4.17782112]
[1736990341425,3.12105161,710.87,709.67,4.17782112]
[1736990341627,3.12105161,710.86,709.67,4.17782112]
[1736990341829,3.12105161,710.85,709.67,4.17782112]
[1736990342027,3.12105161,710.84,709.67,4.17782112]
[1736990342228,3.12105161,710.83,709.67,4.17782112]
[1736990342424,3.12105161,710.82,709.67,4.17782112]
[1736990342731,3.12105161,710.81,709.67,4.17782112]
[1736990343030,3.12105161,710.8,709.67,4.17782112]
[1736990343228,3.12105161,710.79,709.67,4.17782112]